[Event "Early-Titled-Tuesday-Blitz-February-06-2024"]
[Site "Chess.com"]
[Date "2024.02.06"]
[Round "6"]
[White "gmcorrales"]
[Black "Iskusnyh"]
[Result "1-0"]
[WhiteElo "2865"]
[BlackElo "2655"]
[TimeControl "180+1"]
[EndTime "9:08:06 PST"]
[Termination "gmcorrales won on time"]

1. d4 {[%clk 0:03:00.9]} 1... d5 {[%clk 0:02:58.2]} 2. c4 {[%clk 0:02:58.4]}
2... c6 {[%clk 0:02:56.7]} 3. e3 {[%clk 0:02:58.5]} 3... Nf6 {[%clk 0:02:52.4]}
4. Nc3 {[%clk 0:02:58.9]} 4... a6 {[%clk 0:02:51]} 5. Nf3 {[%clk 0:02:59.2]}
5... e6 {[%clk 0:02:50.4]} 6. Bd3 {[%clk 0:02:58.1]} 6... dxc4 {[%clk
0:02:46.6]} 7. Bxc4 {[%clk 0:02:58.1]} 7... b5 {[%clk 0:02:45.1]} 8. Be2 {[%clk
0:02:58.2]} 8... c5 {[%clk 0:02:44.3]} 9. O-O {[%clk 0:02:57.5]} 9... Nbd7
{[%clk 0:02:41.2]} 10. b3 {[%clk 0:02:57.6]} 10... Bb7 {[%clk 0:02:31.2]} 11.
Bb2 {[%clk 0:02:56.7]} 11... cxd4 {[%clk 0:02:28.8]} 12. Qxd4 {[%clk 0:02:46.3]}
12... Be7 {[%clk 0:02:26.5]} 13. Rfd1 {[%clk 0:02:45.8]} 13... O-O {[%clk
0:02:23.9]} 14. Rac1 {[%clk 0:02:26.7]} 14... Qb6 {[%clk 0:02:16.5]} 15. Qf4
{[%clk 0:01:36.2]} 15... Rfd8 {[%clk 0:02:09.2]} 16. a4 {[%clk 0:01:18.1]} 16...
bxa4 {[%clk 0:01:51.9]} 17. Qxa4 {[%clk 0:01:14]} 17... Nc5 {[%clk 0:01:48.4]}
18. Rxd8+ {[%clk 0:00:59.7]} 18... Rxd8 {[%clk 0:01:44.6]} 19. Qf4 {[%clk
0:00:53.1]} 19... Qxb3 {[%clk 0:01:38.4]} 20. Ba1 {[%clk 0:00:48.8]} 20... Bxf3
{[%clk 0:01:05.5]} 21. Qxf3 {[%clk 0:00:46.1]} 21... h6 {[%clk 0:00:43]} 22. g3
{[%clk 0:00:43.8]} 22... Nd5 {[%clk 0:00:36.3]} 23. Nxd5 {[%clk 0:00:40.7]}
23... Qxd5 {[%clk 0:00:34.7]} 24. Qg4 {[%clk 0:00:38.3]} 24... Bf8 {[%clk
0:00:30.3]} 25. Bd4 {[%clk 0:00:27.6]} 25... f5 {[%clk 0:00:25.9]} 26. Qh4
{[%clk 0:00:26.5]} 26... Ne4 {[%clk 0:00:22.6]} 27. Bc4 {[%clk 0:00:26.5]} 27...
Qd7 {[%clk 0:00:20.3]} 28. Bxe6+ {[%clk 0:00:26.7]} 28... Qxe6 {[%clk
0:00:18.9]} 29. Qxd8 {[%clk 0:00:26.9]} 29... Ng5 {[%clk 0:00:17.8]} 30. Rc8
{[%clk 0:00:26.2]} 30... Nf3+ {[%clk 0:00:12]} 31. Kf1 {[%clk 0:00:23.3]} 31...
Kh7 {[%clk 0:00:09.1]} 32. Qxf8 {[%clk 0:00:21.8]} 32... Qb3 {[%clk 0:00:06.6]}
33. Qh8+ {[%clk 0:00:19.8]} 33... Kg6 {[%clk 0:00:05.5]} 34. Qxg7+ {[%clk
0:00:18.1]} 34... Kh5 {[%clk 0:00:05.6]} 35. Rc1 {[%clk 0:00:12.6]} 35... Qd3+
{[%clk 0:00:04.8]} 36. Kg2 {[%clk 0:00:12.7]} 36... Qe4 {[%clk 0:00:05]} 37.
Qf7+ {[%clk 0:00:12.7]} 37... Kg5 {[%clk 0:00:05]} 38. h4+ {[%clk 0:00:12.4]}
38... Nxh4+ {[%clk 0:00:04.4]} 39. Kf1 {[%clk 0:00:12.9]} 39... Qd3+ {[%clk
0:00:03.6]} 40. Kg1 {[%clk 0:00:12.5]} 40... Nf3+ {[%clk 0:00:03.3]} 41. Kg2
{[%clk 0:00:12.8]} 41... Qe4 {[%clk 0:00:02.8]} 42. Bf6+ {[%clk 0:00:13.1]}
42... Kg4 {[%clk 0:00:02.1]} 43. Qg6+ {[%clk 0:00:13.5]} 43... Ng5+ {[%clk
0:00:02.2]} 44. Kg1 {[%clk 0:00:13.1]} 44... Kf3 {[%clk 0:00:01.2]} 45. Qh5+
{[%clk 0:00:12.8]} 1-0

[Event "Early-Titled-Tuesday-Blitz-February-06-2024"]
[Site "Chess.com"]
[Date "2024.02.06"]
[Round "6"]
[White "AccioChess"]
[Black "FMStan15"]
[Result "0-1"]
[WhiteElo "2414"]
[BlackElo "2048"]
[TimeControl "180+1"]
[EndTime "9:08:06 PST"]
[Termination "FMStan15 won on time"]

1. e4 {[%clk 0:03:00.9]} 1... e6 {[%clk 0:02:51.3]} 2. d4 {[%clk 0:02:59.9]}
2... d5 {[%clk 0:02:50.9]} 3. Nc3 {[%clk 0:03:00.1]} 3... Bb4 {[%clk 0:02:50.2]}
4. e5 {[%clk 0:02:59.2]} 4... c5 {[%clk 0:02:49.9]} 5. a3 {[%clk 0:02:59.8]}
5... Bxc3+ {[%clk 0:02:49.5]} 6. bxc3 {[%clk 0:03:00.7]} 6... Qc7 {[%clk
0:02:49.8]} 7. Nf3 {[%clk 0:03:00.7]} 7... Ne7 {[%clk 0:02:49]} 8. Bd3 {[%clk
0:02:56.9]} 8... h6 {[%clk 0:02:49.1]} 9. O-O {[%clk 0:02:56.2]} 9... O-O {[%clk
0:02:49.1]} 10. a4 {[%clk 0:02:54.7]} 10... b6 {[%clk 0:02:49.4]} 11. Nh4 {[%clk
0:02:44.9]} 11... Ba6 {[%clk 0:02:47.6]} 12. f4 {[%clk 0:02:44.2]} 12... Bxd3
{[%clk 0:02:47.4]} 13. Qxd3 {[%clk 0:02:42]} 13... cxd4 {[%clk 0:02:47.6]} 14.
cxd4 {[%clk 0:02:41.6]} 14... Qc4 {[%clk 0:02:47.6]} 15. Qd2 {[%clk 0:02:35.7]}
15... Rc8 {[%clk 0:02:45.1]} 16. Ba3 {[%clk 0:02:16.5]} 16... Nf5 {[%clk
0:02:43.9]} 17. Nxf5 {[%clk 0:01:59.5]} 17... exf5 {[%clk 0:02:42.6]} 18. Rf2
{[%clk 0:01:30.9]} 18... Nc6 {[%clk 0:02:23.9]} 19. Rd1 {[%clk 0:01:10.4]} 19...
Qxa4 {[%clk 0:02:18.9]} 20. Bd6 {[%clk 0:01:06.2]} 20... Nd8 {[%clk 0:02:18.1]}
21. g4 {[%clk 0:00:58.3]} 21... fxg4 {[%clk 0:02:16.1]} 22. f5 {[%clk
0:00:58.3]} 22... Nb7 {[%clk 0:02:08]} 23. Be7 {[%clk 0:00:56.5]} 23... Qd7
{[%clk 0:02:04]} 24. Ba3 {[%clk 0:00:37.3]} 24... Kh7 {[%clk 0:01:54.3]} 25. Qf4
{[%clk 0:00:34.6]} 25... Rc3 {[%clk 0:01:40.6]} 26. Bb2 {[%clk 0:00:31.6]} 26...
Rf3 {[%clk 0:01:30.3]} 27. Rxf3 {[%clk 0:00:31.6]} 27... gxf3 {[%clk 0:01:30.3]}
28. Rd3 {[%clk 0:00:31.8]} 28... Rc8 {[%clk 0:01:26.3]} 29. c3 {[%clk
0:00:24.1]} 29... Qe7 {[%clk 0:01:18.4]} 30. h4 {[%clk 0:00:17.5]} 30... g5
{[%clk 0:01:08.3]} 31. Qxf3 {[%clk 0:00:12.2]} 31... g4 {[%clk 0:00:54.4]} 32.
Qg3 {[%clk 0:00:11.3]} 32... Rg8 {[%clk 0:00:48]} 33. Rd2 {[%clk 0:00:11.2]}
33... h5 {[%clk 0:00:47.1]} 34. Rf2 {[%clk 0:00:11]} 34... Na5 {[%clk
0:00:39.5]} 35. Bc1 {[%clk 0:00:11]} 35... Qf8 {[%clk 0:00:34.7]} 36. Qf4 {[%clk
0:00:09.9]} 36... Qg7 {[%clk 0:00:34.5]} 37. e6 {[%clk 0:00:08.1]} 37... fxe6
{[%clk 0:00:29.3]} 38. fxe6 {[%clk 0:00:08.1]} 38... Re8 {[%clk 0:00:29.5]} 39.
Qf5+ {[%clk 0:00:08]} 39... Qg6 {[%clk 0:00:21.4]} 40. Qe5 {[%clk 0:00:06.8]}
40... Rxe6 {[%clk 0:00:12.5]} 41. Qc7+ {[%clk 0:00:06.5]} 41... Kg8 {[%clk
0:00:09.6]} 42. Bg5 {[%clk 0:00:03.9]} 42... Re1+ {[%clk 0:00:07.8]} 43. Kh2
{[%clk 0:00:04.2]} 43... Re8 {[%clk 0:00:05.3]} 44. Qd7 {[%clk 0:00:01.1]} 44...
g3+ {[%clk 0:00:05]} 0-1

[Event "Early-Titled-Tuesday-Blitz-February-06-2024"]
[Site "Chess.com"]
[Date "2024.02.06"]
[Round "6"]
[White "Licancabur"]
[Black "javirec"]
[Result "0-1"]
[WhiteElo "2408"]
[BlackElo "2298"]
[TimeControl "180+1"]
[EndTime "9:08:07 PST"]
[Termination "javirec won on time"]

1. d4 {[%clk 0:02:59.9]} 1... Nf6 {[%clk 0:02:58.4]} 2. Bg5 {[%clk 0:02:58.6]}
2... Ne4 {[%clk 0:02:56.2]} 3. Bf4 {[%clk 0:02:58.6]} 3... c5 {[%clk 0:02:55]}
4. f3 {[%clk 0:02:55.2]} 4... Qa5+ {[%clk 0:02:54.9]} 5. c3 {[%clk 0:02:53.4]}
5... Nf6 {[%clk 0:02:54.1]} 6. d5 {[%clk 0:02:53]} 6... b5 {[%clk 0:02:50]} 7.
e4 {[%clk 0:02:51.3]} 7... d6 {[%clk 0:02:49.8]} 8. Nd2 {[%clk 0:02:31.2]} 8...
Nbd7 {[%clk 0:02:39.3]} 9. g4 {[%clk 0:02:26.7]} 9... g6 {[%clk 0:02:32.1]} 10.
h4 {[%clk 0:02:24]} 10... h5 {[%clk 0:02:26.6]} 11. g5 {[%clk 0:02:08.5]} 11...
Nh7 {[%clk 0:02:26.7]} 12. Bh3 {[%clk 0:02:05.5]} 12... Bg7 {[%clk 0:02:26.3]}
13. Ne2 {[%clk 0:02:04.1]} 13... Ne5 {[%clk 0:02:18.8]} 14. Bxc8 {[%clk
0:01:55.8]} 14... Rxc8 {[%clk 0:01:54.7]} 15. Bxe5 {[%clk 0:01:50.8]} 15... Bxe5
{[%clk 0:01:55.6]} 16. f4 {[%clk 0:01:50.5]} 16... Bg7 {[%clk 0:01:54]} 17. O-O
{[%clk 0:01:45.9]} 17... b4 {[%clk 0:01:32.5]} 18. Nc4 {[%clk 0:01:39.4]} 18...
Qb5 {[%clk 0:01:27.3]} 19. Qd3 {[%clk 0:01:38.5]} 19... Qd7 {[%clk 0:01:23.8]}
20. Qf3 {[%clk 0:01:20.1]} 20... Qg4+ {[%clk 0:01:18.9]} 21. Qxg4 {[%clk
0:01:16.2]} 21... hxg4 {[%clk 0:01:19.8]} 22. Kg2 {[%clk 0:01:16.7]} 22... Nf8
{[%clk 0:01:06.5]} 23. Kg3 {[%clk 0:01:15.3]} 23... Nd7 {[%clk 0:01:06.2]} 24.
Kxg4 {[%clk 0:01:14.6]} 24... Nb6 {[%clk 0:01:04.6]} 25. Nxb6 {[%clk 0:01:02]}
25... axb6 {[%clk 0:01:05.5]} 26. a3 {[%clk 0:01:01.4]} 26... b3 {[%clk
0:00:57]} 27. Rh1 {[%clk 0:00:39.9]} 27... Kd7 {[%clk 0:00:53.7]} 28. Rh3 {[%clk
0:00:37.1]} 28... b5 {[%clk 0:00:48.6]} 29. Rah1 {[%clk 0:00:30.3]} 29... Rb8
{[%clk 0:00:36.3]} 30. Nc1 {[%clk 0:00:28]} 30... b4 {[%clk 0:00:28.2]} 31. cxb4
{[%clk 0:00:24.9]} 31... cxb4 {[%clk 0:00:29.1]} 32. Rxb3 {[%clk 0:00:22.6]}
32... bxa3 {[%clk 0:00:29.1]} 33. bxa3 {[%clk 0:00:19.4]} 33... Rxb3 {[%clk
0:00:28.7]} 34. Nxb3 {[%clk 0:00:19.4]} 34... Rb8 {[%clk 0:00:29.2]} 35. Rb1
{[%clk 0:00:19.5]} 35... Ra8 {[%clk 0:00:27.2]} 36. Nd2 {[%clk 0:00:15.6]} 36...
Rxa3 {[%clk 0:00:26.2]} 37. Rb7+ {[%clk 0:00:15.9]} 37... Kd8 {[%clk 0:00:26.2]}
38. Nc4 {[%clk 0:00:16.1]} 38... Ra4 {[%clk 0:00:21.2]} 39. Nb6 {[%clk 0:00:13]}
39... Rxe4 {[%clk 0:00:18.8]} 40. Rd7+ {[%clk 0:00:13]} 40... Ke8 {[%clk
0:00:18.6]} 41. Rc7 {[%clk 0:00:13.3]} 41... f5+ {[%clk 0:00:14.2]} 42. gxf6
{[%clk 0:00:11.8]} 42... Bxf6 {[%clk 0:00:14.4]} 43. Rc8+ {[%clk 0:00:05.5]}
43... Kf7 {[%clk 0:00:14.6]} 44. Rh8 {[%clk 0:00:04.6]} 44... Bxh8 {[%clk
0:00:13.5]} 0-1

[Event "Early-Titled-Tuesday-Blitz-February-06-2024"]
[Site "Chess.com"]
[Date "2024.02.06"]
[Round "6"]
[White "ViIIagra"]
[Black "DavidGavrilescu18"]
[Result "1-0"]
[WhiteElo "2964"]
[BlackElo "2771"]
[TimeControl "180+1"]
[EndTime "9:08:08 PST"]
[Termination "ViIIagra won by resignation"]

1. Nf3 {[%clk 0:03:00.3]} 1... d5 {[%clk 0:02:59.9]} 2. d3 {[%clk 0:03:01]} 2...
Nf6 {[%clk 0:02:58.7]} 3. c3 {[%clk 0:03:01.5]} 3... e6 {[%clk 0:02:57.8]} 4.
Nbd2 {[%clk 0:03:01.1]} 4... Be7 {[%clk 0:02:58.1]} 5. e4 {[%clk 0:03:01.8]}
5... O-O {[%clk 0:02:57.6]} 6. Be2 {[%clk 0:03:02.5]} 6... c5 {[%clk 0:02:57.6]}
7. O-O {[%clk 0:03:03.1]} 7... Nc6 {[%clk 0:02:57.8]} 8. Re1 {[%clk 0:03:03.8]}
8... Qc7 {[%clk 0:02:48.2]} 9. Bf1 {[%clk 0:03:03.3]} 9... dxe4 {[%clk 0:02:46]}
10. dxe4 {[%clk 0:03:00.3]} 10... e5 {[%clk 0:02:46]} 11. Nc4 {[%clk 0:02:54.4]}
11... Rd8 {[%clk 0:02:37.7]} 12. Qc2 {[%clk 0:02:45.3]} 12... h6 {[%clk
0:02:35.4]} 13. a4 {[%clk 0:02:44.2]} 13... Be6 {[%clk 0:02:34.3]} 14. b3 {[%clk
0:02:41.4]} 14... b6 {[%clk 0:02:31.2]} 15. Ne3 {[%clk 0:02:40.7]} 15... g6
{[%clk 0:02:30]} 16. c4 {[%clk 0:02:36.8]} 16... Nd4 {[%clk 0:02:26.9]} 17. Nxd4
{[%clk 0:02:36.1]} 17... cxd4 {[%clk 0:02:26.9]} 18. Nd5 {[%clk 0:02:31.1]}
18... Bxd5 {[%clk 0:02:17.2]} 19. exd5 {[%clk 0:02:28.2]} 19... Nxd5 {[%clk
0:02:16.7]} 20. Bxh6 {[%clk 0:02:27.7]} 20... Nc3 {[%clk 0:02:06.9]} 21. Bd3
{[%clk 0:01:22.3]} 21... Bf8 {[%clk 0:01:35.5]} 22. Bd2 {[%clk 0:01:06.6]} 22...
Bg7 {[%clk 0:01:34.8]} 23. Bxc3 {[%clk 0:01:04.8]} 23... dxc3 {[%clk 0:01:34.6]}
24. Be4 {[%clk 0:01:05.2]} 24... Rac8 {[%clk 0:01:30.9]} 25. Rad1 {[%clk
0:00:58.9]} 25... Rxd1 {[%clk 0:01:22.8]} 26. Rxd1 {[%clk 0:00:59.8]} 26... Rd8
{[%clk 0:01:23.2]} 27. Bd5 {[%clk 0:00:51.5]} 27... e4 {[%clk 0:01:22.9]} 28.
Qxe4 {[%clk 0:00:51.3]} 28... Kf8 {[%clk 0:01:16.8]} 29. g3 {[%clk 0:00:47.2]}
29... Re8 {[%clk 0:01:15.1]} 30. Qf3 {[%clk 0:00:47.6]} 30... Qe7 {[%clk
0:01:06.8]} 31. Kg2 {[%clk 0:00:46.9]} 31... Qf6 {[%clk 0:01:06.6]} 32. Qd3
{[%clk 0:00:46.2]} 32... Qe5 {[%clk 0:00:59.2]} 33. Kf1 {[%clk 0:00:36.8]} 33...
Qh5 {[%clk 0:00:55.1]} 34. h4 {[%clk 0:00:35.7]} 34... Qg4 {[%clk 0:00:52.5]}
35. Bc6 {[%clk 0:00:32.3]} 35... c2 {[%clk 0:00:05.9]} 36. Qxc2 {[%clk 0:00:31]}
36... Re5 {[%clk 0:00:03.9]} 37. Rd8+ {[%clk 0:00:27.7]} 37... Ke7 {[%clk
0:00:04.1]} 38. Qd3 {[%clk 0:00:24.7]} 38... Qh3+ {[%clk 0:00:04.3]} 39. Bg2
{[%clk 0:00:24.2]} 39... Qe6 {[%clk 0:00:05.2]} 40. Kg1 {[%clk 0:00:17.5]} 40...
Bf6 {[%clk 0:00:04.1]} 41. Rd5 {[%clk 0:00:17]} 41... Rxd5 {[%clk 0:00:04.1]}
42. Bxd5 {[%clk 0:00:16.8]} 42... Qe5 {[%clk 0:00:03.4]} 43. Kg2 {[%clk
0:00:17.2]} 43... Bg7 {[%clk 0:00:02.6]} 44. b4 {[%clk 0:00:17.1]} 44... f5
{[%clk 0:00:03]} 45. a5 {[%clk 0:00:17.3]} 45... bxa5 {[%clk 0:00:02.9]} 46.
bxa5 {[%clk 0:00:18.2]} 46... Bf8 {[%clk 0:00:03.3]} 47. Qa3+ {[%clk 0:00:17.8]}
47... Ke8 {[%clk 0:00:03]} 48. Qb3 {[%clk 0:00:18.2]} 48... Bd6 {[%clk 0:00:03]}
49. Qb7 {[%clk 0:00:15.9]} 49... Qd4 {[%clk 0:00:03.3]} 50. Qc8+ {[%clk
0:00:14.9]} 50... Ke7 {[%clk 0:00:03.5]} 51. Qe6+ {[%clk 0:00:15.6]} 51... Kd8
{[%clk 0:00:02.7]} 52. Qxd6+ {[%clk 0:00:16.5]} 52... Kc8 {[%clk 0:00:03.2]} 53.
Be6+ {[%clk 0:00:16.8]} 53... Kb7 {[%clk 0:00:03.9]} 54. Qxd4 {[%clk 0:00:17.7]}
1-0

[Event "Early-Titled-Tuesday-Blitz-February-06-2024"]
[Site "Chess.com"]
[Date "2024.02.06"]
[Round "6"]
[White "MikaelyanArman"]
[Black "GlavkonVVS"]
[Result "0-1"]
[WhiteElo "2860"]
[BlackElo "2626"]
[TimeControl "180+1"]
[EndTime "9:08:11 PST"]
[Termination "GlavkonVVS won by resignation"]

1. a4 {[%clk 0:03:00.9]} 1... Nf6 {[%clk 0:02:58.6]} 2. e3 {[%clk 0:03:01.2]}
2... g6 {[%clk 0:02:56.3]} 3. Nf3 {[%clk 0:03:01.6]} 3... Bg7 {[%clk 0:02:55.8]}
4. d4 {[%clk 0:03:02.1]} 4... O-O {[%clk 0:02:54.5]} 5. Be2 {[%clk 0:03:02.7]}
5... a6 {[%clk 0:02:50.1]} 6. O-O {[%clk 0:03:03.1]} 6... d6 {[%clk 0:02:49]} 7.
a5 {[%clk 0:02:57]} 7... Nbd7 {[%clk 0:02:33.4]} 8. c4 {[%clk 0:02:56.1]} 8...
c5 {[%clk 0:02:33.6]} 9. Nc3 {[%clk 0:02:55.6]} 9... b6 {[%clk 0:02:31.8]} 10.
axb6 {[%clk 0:02:49.6]} 10... Qxb6 {[%clk 0:02:31.1]} 11. d5 {[%clk 0:02:41.4]}
11... e6 {[%clk 0:02:26.2]} 12. e4 {[%clk 0:02:36.8]} 12... exd5 {[%clk
0:02:25.8]} 13. exd5 {[%clk 0:02:37.7]} 13... Re8 {[%clk 0:02:23.8]} 14. h3
{[%clk 0:02:30.7]} 14... Ne4 {[%clk 0:02:17.5]} 15. Nxe4 {[%clk 0:02:27.8]}
15... Rxe4 {[%clk 0:02:17.2]} 16. Bd3 {[%clk 0:02:28.5]} 16... Re8 {[%clk
0:02:15.8]} 17. Re1 {[%clk 0:02:23.6]} 17... Bb7 {[%clk 0:02:12.9]} 18. Bf4
{[%clk 0:02:19.6]} 18... h6 {[%clk 0:01:55.2]} 19. Qa4 {[%clk 0:02:08.4]} 19...
Nf6 {[%clk 0:01:30.4]} 20. b3 {[%clk 0:02:00.5]} 20... g5 {[%clk 0:01:19.6]} 21.
Bd2 {[%clk 0:01:58.1]} 21... Qc7 {[%clk 0:01:16.1]} 22. Ba5 {[%clk 0:01:54.1]}
22... Qd7 {[%clk 0:01:12.6]} 23. Qxd7 {[%clk 0:01:12.3]} 23... Nxd7 {[%clk
0:01:11.7]} 24. Rad1 {[%clk 0:01:12.9]} 24... Ne5 {[%clk 0:01:09.2]} 25. Nxe5
{[%clk 0:01:08.3]} 25... Bxe5 {[%clk 0:01:00]} 26. Bf5 {[%clk 0:01:08.5]} 26...
Bc8 {[%clk 0:00:58.6]} 27. Bc2 {[%clk 0:01:01.4]} 27... Bd7 {[%clk 0:00:58]} 28.
g4 {[%clk 0:00:43.4]} 28... Kg7 {[%clk 0:00:57.5]} 29. Kg2 {[%clk 0:00:43.5]}
29... f5 {[%clk 0:00:52.8]} 30. gxf5 {[%clk 0:00:31.5]} 30... Kf6 {[%clk
0:00:52.4]} 31. Re3 {[%clk 0:00:22.7]} 31... Bxf5 {[%clk 0:00:51.1]} 32. Rf3
{[%clk 0:00:20.1]} 32... Bf4 {[%clk 0:00:49.9]} 33. Bc3+ {[%clk 0:00:20.7]}
33... Kg6 {[%clk 0:00:50.1]} 34. Bxf5+ {[%clk 0:00:20]} 34... Kxf5 {[%clk
0:00:50.5]} 35. b4 {[%clk 0:00:19.7]} 35... Rac8 {[%clk 0:00:46.6]} 36. b5
{[%clk 0:00:18.2]} 36... axb5 {[%clk 0:00:46.3]} 37. cxb5 {[%clk 0:00:19.1]}
37... Rb8 {[%clk 0:00:46.5]} 38. Rb1 {[%clk 0:00:19.2]} 38... Ke4 {[%clk
0:00:43.8]} 39. b6 {[%clk 0:00:11]} 39... Kxd5 {[%clk 0:00:43.9]} 40. Rd3+
{[%clk 0:00:08.4]} 40... Kc6 {[%clk 0:00:43.9]} 41. Ba5 {[%clk 0:00:09]} 41...
Rb7 {[%clk 0:00:41.9]} 42. Kf3 {[%clk 0:00:06.1]} 42... Ra8 {[%clk 0:00:40.9]}
43. Bd2 {[%clk 0:00:05.3]} 43... Bxd2 {[%clk 0:00:40.3]} 44. Rxd2 {[%clk
0:00:06.2]} 44... d5 {[%clk 0:00:38.1]} 45. Re2 {[%clk 0:00:06.7]} 45... Ra3+
{[%clk 0:00:36]} 46. Kg4 {[%clk 0:00:07]} 46... Ra4+ {[%clk 0:00:35.4]} 47. Kf5
{[%clk 0:00:07.1]} 47... Rf4+ {[%clk 0:00:34.5]} 48. Ke5 {[%clk 0:00:07.4]}
48... d4 {[%clk 0:00:30.8]} 49. Ke6 {[%clk 0:00:05.6]} 49... Rxb6 {[%clk
0:00:29.2]} 50. Rxb6+ {[%clk 0:00:06.2]} 50... Kxb6 {[%clk 0:00:29.5]} 51. Kd5
{[%clk 0:00:07.1]} 51... d3 {[%clk 0:00:26.6]} 52. Rb2+ {[%clk 0:00:06.1]} 52...
Rb4 {[%clk 0:00:25.7]} 53. Rd2 {[%clk 0:00:06.3]} 53... Rd4+ {[%clk 0:00:25.7]}
54. Ke5 {[%clk 0:00:06.9]} 54... Kc6 {[%clk 0:00:25.9]} 55. f3 {[%clk
0:00:05.5]} 55... Kb5 {[%clk 0:00:25]} 56. Rb2+ {[%clk 0:00:05.2]} 56... Kc4
{[%clk 0:00:25.4]} 0-1

[Event "Early-Titled-Tuesday-Blitz-February-06-2024"]
[Site "Chess.com"]
[Date "2024.02.06"]
[Round "6"]
[White "SantoBlue"]
[Black "youngKID"]
[Result "1/2-1/2"]
[WhiteElo "2997"]
[BlackElo "2806"]
[TimeControl "180+1"]
[EndTime "9:08:12 PST"]
[Termination "Game drawn by repetition"]

1. e4 {[%clk 0:03:00.9]} 1... e5 {[%clk 0:02:58.9]} 2. Nf3 {[%clk 0:02:58.6]}
2... Nc6 {[%clk 0:02:59.6]} 3. Bb5 {[%clk 0:02:57.3]} 3... a6 {[%clk 0:03:00.1]}
4. Ba4 {[%clk 0:02:56.8]} 4... d6 {[%clk 0:03:00]} 5. c3 {[%clk 0:02:50.8]} 5...
Nf6 {[%clk 0:02:56.1]} 6. d4 {[%clk 0:02:47.6]} 6... Bd7 {[%clk 0:02:56.5]} 7.
O-O {[%clk 0:02:46]} 7... g6 {[%clk 0:02:53]} 8. d5 {[%clk 0:02:38.7]} 8... Ne7
{[%clk 0:02:52.9]} 9. Bxd7+ {[%clk 0:02:38.8]} 9... Qxd7 {[%clk 0:02:53.8]} 10.
Re1 {[%clk 0:02:37.2]} 10... Bg7 {[%clk 0:02:50.3]} 11. c4 {[%clk 0:02:37.8]}
11... O-O {[%clk 0:02:49.6]} 12. Nc3 {[%clk 0:02:37.8]} 12... h6 {[%clk
0:02:49]} 13. c5 {[%clk 0:02:35]} 13... Rad8 {[%clk 0:02:37.6]} 14. cxd6 {[%clk
0:02:29.4]} 14... cxd6 {[%clk 0:02:38.5]} 15. Be3 {[%clk 0:02:27.6]} 15... Ng4
{[%clk 0:02:37.1]} 16. Bb6 {[%clk 0:02:26.5]} 16... Rc8 {[%clk 0:02:37.3]} 17.
h3 {[%clk 0:02:26.1]} 17... Nf6 {[%clk 0:02:37.8]} 18. Be3 {[%clk 0:02:16.1]}
18... Nh5 {[%clk 0:02:34.1]} 19. Na4 {[%clk 0:02:13.8]} 19... Qb5 {[%clk
0:02:25.5]} 20. Nb6 {[%clk 0:02:13.9]} 20... Rc7 {[%clk 0:02:25.9]} 21. a4
{[%clk 0:02:11.3]} 21... Qb4 {[%clk 0:02:11]} 22. a5 {[%clk 0:01:55.7]} 22...
Qxe4 {[%clk 0:02:05.9]} 23. Bxh6 {[%clk 0:01:48.7]} 23... Qc2 {[%clk 0:02:06]}
24. Bxg7 {[%clk 0:01:43.4]} 24... Kxg7 {[%clk 0:02:03.8]} 25. Rc1 {[%clk
0:01:35.1]} 25... Qxd1 {[%clk 0:01:52.2]} 26. Rexd1 {[%clk 0:01:36]} 26... Rxc1
{[%clk 0:01:52.5]} 27. Rxc1 {[%clk 0:01:36.9]} 27... Nf6 {[%clk 0:01:50.4]} 28.
Rc7 {[%clk 0:01:35.9]} 28... Nexd5 {[%clk 0:01:50.7]} 29. Nxd5 {[%clk
0:01:36.8]} 29... Nxd5 {[%clk 0:01:50.9]} 30. Rxb7 {[%clk 0:01:37.7]} 30... Rc8
{[%clk 0:01:48.2]} 31. Rd7 {[%clk 0:01:25.1]} 31... Rc6 {[%clk 0:01:11.6]} 32.
Ng5 {[%clk 0:01:03.8]} 32... Kf6 {[%clk 0:01:11.1]} 33. h4 {[%clk 0:01:02.9]}
33... Ne7 {[%clk 0:01:11.3]} 34. b4 {[%clk 0:01:01.8]} 34... d5 {[%clk
0:01:03.3]} 35. g4 {[%clk 0:00:56.4]} 35... e4 {[%clk 0:00:58.4]} 36. Nh7+
{[%clk 0:00:55.7]} 36... Ke6 {[%clk 0:00:58.1]} 37. Nf8+ {[%clk 0:00:56.4]}
37... Kf6 {[%clk 0:00:58.7]} 38. g5+ {[%clk 0:00:56.7]} 38... Kg7 {[%clk
0:00:59.2]} 39. Rxe7 {[%clk 0:00:43]} 39... Kxf8 {[%clk 0:00:59.4]} 40. Rd7
{[%clk 0:00:43.5]} 40... Rc4 {[%clk 0:00:56.8]} 41. Rxd5 {[%clk 0:00:42.8]}
41... Rxb4 {[%clk 0:00:56.4]} 42. Rd6 {[%clk 0:00:37.7]} 42... e3 {[%clk
0:00:53.9]} 43. fxe3 {[%clk 0:00:38.6]} 43... Rxh4 {[%clk 0:00:54.1]} 44. Rxa6
{[%clk 0:00:38.7]} 44... Rg4+ {[%clk 0:00:54.1]} 45. Kf2 {[%clk 0:00:39.5]}
45... Rxg5 {[%clk 0:00:55]} 46. Ke2 {[%clk 0:00:38.9]} 46... Rb5 {[%clk
0:00:50.9]} 47. Kd3 {[%clk 0:00:39.3]} 47... g5 {[%clk 0:00:50.8]} 48. Kc4
{[%clk 0:00:37.1]} 48... Rf5 {[%clk 0:00:50.8]} 49. e4 {[%clk 0:00:23.5]} 49...
Rf2 {[%clk 0:00:26.1]} 50. Rb6 {[%clk 0:00:23.2]} 50... Ra2 {[%clk 0:00:25.8]}
51. Rb5 {[%clk 0:00:20.3]} 51... f6 {[%clk 0:00:21.7]} 52. e5 {[%clk 0:00:20.6]}
52... Kf7 {[%clk 0:00:18.8]} 53. exf6 {[%clk 0:00:18.6]} 53... Kxf6 {[%clk
0:00:19.7]} 54. Kb3 {[%clk 0:00:19.2]} 54... Ra1 {[%clk 0:00:19.8]} 55. Kb2
{[%clk 0:00:19.9]} 55... Ra4 {[%clk 0:00:20.1]} 56. Kb3 {[%clk 0:00:20.3]} 56...
Ra1 {[%clk 0:00:20.7]} 57. Kb2 {[%clk 0:00:17.3]} 57... Ra4 {[%clk 0:00:20.7]}
58. Kb3 {[%clk 0:00:17.8]} 58... Ra1 {[%clk 0:00:21]} 1/2-1/2